bitfinex/quotes_ETHUSD_20250123
["timestamp","ask_amount","ask_price","bid_price","bid_amount"]
[1737666754122,0.7965,3239.5,3238.7,0.04158219]
[1737666754346,0.02,3239.6,3239.0,0.55]
[1737666754743,0.02,3239.6,3239.1,0.04154739]
[1737666755077,0.02,3239.6,3239.3,3.0]
[1737666755447,0.02,3239.6,3239.2,0.04152458]
[1737666755448,0.02,3239.6,3239.4,0.04140245]
[1737666755765,0.02,3239.6,3238.9,35.0]
[1737666755966,0.8098,3239.6,3239.5,0.04132079]
[1737666756287,0.8098,3239.6,3238.8,0.45891604]
[1737666756441,0.8098,3239.6,3239.0,0.45891604]
[1737666756862,0.8098,3239.6,3239.1,0.04148123]
[1737666757983,0.8098,3239.6,3239.0,0.45891604]
[1737666758414,1.09281086,3239.6,3238.1,6.54713604]
[1737666758564,0.8098,3239.6,3238.4,0.55]
[1737666758753,0.8098,3239.6,3238.6,3.0]
[1737666758955,0.02,3239.6,3239.0,3.08737]
[1737666759306,0.02,3239.6,3239.1,0.0417351]
[1737666759692,0.02,3239.6,3239.2,1.00891604]
[1737666760011,0.02,3239.6,3239.3,3.0]
[1737666760320,0.02,3239.6,3239.4,0.75514786]
[1737666760452,0.02,3239.6,3239.4,0.04135159]
[1737666760658,0.02,3239.6,3239.4,0.21569592]
[1737666760853,0.02,3239.6,3239.5,0.04129052]
[1737666761108,0.8078,3239.6,3239.5,0.04129052]
[1737666761279,0.8078,3239.6,3239.4,0.21569592]
[1737666761794,0.8078,3239.6,3238.7,0.45891604]
[1737666762221,0.8078,3239.6,3238.8,0.04017927]
[1737666762583,0.7878,3239.6,3238.8,0.04017927]
[1737666763079,0.7878,3239.6,3238.9,0.21575077]
[1737666763283,0.7878,3239.6,3238.9,0.25640351]
[1737666764290,0.7878,3239.6,3238.9,0.04065274]
[1737666764458,0.7878,3239.6,3238.7,0.21575077]
[1737666764664,0.7878,3239.6,3238.8,0.04079401]
[1737666766059,0.7878,3239.6,3238.9,0.04067826]
[1737666766260,0.7878,3239.6,3238.6,1.00891604]
[1737666766477,0.7878,3239.6,3238.8,0.55]
[1737666766897,0.7878,3239.6,3238.9,0.04067826]
[1737666767103,0.63206044,3240.5,3239.0,3.91781383]
[1737666767260,0.63206044,3240.5,3239.0,3.95840185]
[1737666768509,0.63206044,3240.5,3239.1,3.65466681]
[1737666768708,0.63206044,3240.5,3239.1,0.69512815]
[1737666769280,0.63206044,3240.5,3239.1,1.16516835]
[1737666769702,0.63206044,3240.5,3239.2,0.21575077]
[1737666770005,0.8129,3240.3,3239.2,0.25615104]
[1737666770313,0.8129,3239.9,3239.2,0.25615104]
[1737666770607,1.09622086,3239.8,3239.2,0.21575077]
[1737666770899,0.8129,3239.8,3239.3,0.04047356]
[1737666771065,0.8129,3239.8,3239.2,0.21575077]
[1737666771470,0.8129,3239.8,3239.3,0.04047356]
[1737666771704,0.8129,3239.8,3238.9,3.08746]
[1737666772010,0.8129,3239.8,3239.4,0.04041248]
[1737666772167,0.8129,3239.8,3238.9,3.55]
[1737666772362,0.8129,3239.8,3239.5,0.04035142]
[1737666772598,0.8129,3239.8,3238.9,3.55]
[1737666772767,0.8129,3239.8,3239.6,0.04029035]
[1737666772987,0.8129,3239.8,3238.9,3.55]
[1737666773325,0.8129,3239.8,3239.0,0.663749]
[1737666773644,0.8129,3239.8,3239.0,0.70440579]
[1737666774089,0.8129,3239.8,3239.1,3.0]
[1737666774294,0.8129,3239.8,3239.1,3.04057259]
[1737666774547,0.8129,3239.8,3239.1,0.04057259]
[1737666775197,0.8129,3239.8,3239.1,0.46600475]
[1737666775545,0.8129,3239.8,3239.1,0.04057259]
[1737666775752,0.8129,3239.8,3238.7,0.8228]
[1737666775900,0.8129,3239.8,3239.2,0.04067469]
[1737666776248,0.8129,3239.8,3238.8,0.55]
[1737666776455,0.8129,3239.8,3239.3,0.04061361]
[1737666776595,0.8129,3239.8,3238.8,3.0]
[1737666776791,0.8129,3239.8,3239.4,0.04055253]
[1737666777155,0.8129,3239.8,3239.5,0.04049146]
[1737666777309,0.8129,3239.8,3238.8,3.0]
[1737666777637,0.8129,3239.8,3239.6,0.04039759]
[1737666777937,0.8129,3239.8,3238.6,3.0]
[1737666778152,0.8129,3239.8,3238.3,3.87853]
[1737666778153,0.8129,3239.8,3239.7,6.53e-06]
[1737666778294,0.49888162,3239.8,3238.3,0.7905]
[1737666778490,0.49888162,3239.8,3239.7,0.03799556]
[1737666778694,0.49888162,3239.8,3238.6,3.0]
[1737666778893,0.49888162,3239.8,3239.7,0.03799192]
[1737666779139,0.49888162,3239.8,3238.7,0.55]
[1737666779391,0.49888162,3239.8,3239.7,0.03799002]
[1737666779511,0.49888162,3239.8,3238.7,1.01168524]
[1737666779711,0.49888162,3239.8,3239.7,0.03799002]
[1737666779912,0.49888162,3239.8,3238.7,1.01168524]
[1737666780110,0.49888162,3239.8,3239.7,0.03799002]
[1737666780403,2.0203086,3239.9,3238.7,0.46168524]
[1737666781025,2.0203086,3239.9,3238.1,3.0]
[1737666781213,2.0203086,3239.9,3238.8,0.03870538]
[1737666781412,0.7577,3239.8,3237.9,0.7601]
[1737666781739,0.8067,3239.6,3238.0,0.48426213]
[1737666781933,0.8067,3239.5,3238.0,0.48426213]
[1737666782138,0.62772379,3239.4,3238.0,0.03912044]
[1737666782315,0.8067,3239.3,3237.6,3.0]
[1737666782630,0.8067,3239.3,3238.1,0.03908777]
[1737666782834,0.8067,3239.3,3237.5,3.90486]
[1737666783039,0.8067,3239.3,3238.2,0.03902664]
[1737666783203,0.8067,3239.3,3238.2,3.08806]
[1737666783402,0.8067,3239.3,3238.5,3.0]
[1737666783602,0.8067,3239.3,3238.3,0.34777152]
[1737666783802,0.8067,3239.3,3238.6,0.03896062]
[1737666784005,0.8067,3239.3,3237.9,3.7697]
[1737666784335,0.8067,3239.3,3237.9,0.7697]
[1737666784635,0.8067,3239.3,3238.0,0.41629372]
[1737666785536,0.8067,3239.3,3238.2,3.0]
[1737666785912,0.8067,3239.3,3238.3,0.58904564]
[1737666786238,1.39259058,3240.4,3238.8,0.55]
[1737666786615,0.7845,3240.3,3238.9,0.03823004]
[1737666786813,2.0203086,3239.9,3238.9,0.03823004]
[1737666786999,2.0203086,3239.6,3238.9,0.03823004]
[1737666787340,0.7655,3239.5,3237.7,3.0]
[1737666787526,0.7655,3239.5,3239.0,0.03816896]
[1737666787836,0.7655,3239.5,3237.8,3.08844]
[1737666787837,0.7655,3239.1,3237.3,3.87775529]
[1737666788016,0.7655,3239.1,3237.5,0.55]
[1737666788216,0.7655,3239.1,3237.5,3.55]
[1737666788437,0.7655,3239.1,3237.6,0.03902453]
[1737666789309,0.63037921,3238.9,3237.6,0.03902453]
[1737666789527,0.63037921,3238.9,3237.7,0.31277945]
[1737666789713,0.8049,3238.8,3237.7,0.0389436]
[1737666790447,0.8049,3238.8,3237.4,0.69053553]
[1737666790625,0.8049,3238.8,3237.8,0.03888246]
[1737666790804,0.8049,3238.8,3237.3,3.1639828]
[1737666790999,2.0203086,3238.6,3237.9,0.03924899]
[1737666791243,0.7914,3238.4,3237.3,3.1639828]
[1737666791435,1.35941238,3238.6,3238.0,0.03918787]
[1737666791741,0.63037921,3238.9,3238.1,0.03912675]
[1737666791742,2.65068781,3238.9,3238.1,0.03912675]
[1737666791957,2.65068781,3238.9,3237.3,3.1639828]
[1737666792174,2.65068781,3238.9,3238.2,0.03906563]
[1737666792175,0.26506878,3238.8,3238.2,0.03906563]
[1737666792388,0.26506878,3238.8,3237.4,0.53859828]
[1737666792584,0.63037921,3238.9,3238.3,0.03919656]
[1737666792873,2.0203086,3239.2,3237.4,0.53859828]
[1737666792874,2.0203086,3239.2,3237.4,3.53859828]
[1737666793229,2.0203086,3239.2,3237.5,0.04010086]
[1737666793851,2.0203086,3238.6,3237.5,0.04010086]
[1737666794434,0.7741,3238.2,3237.5,0.04010086]
[1737666794634,0.7741,3238.0,3237.5,0.04010086]
[1737666794964,0.7741,3238.0,3237.3,0.1639828]
[1737666795462,0.7741,3238.0,3237.4,0.0400855]
[1737666796037,0.7741,3238.0,3237.3,0.1639828]
[1737666796239,0.7741,3238.0,3237.5,0.04017541]
[1737666796433,0.7741,3238.0,3237.4,0.04023656]
[1737666796634,0.7741,3238.0,3237.3,0.1639828]
[1737666797265,2.7944086,3238.0,3237.3,0.1639828]
[1737666797568,0.27944086,3237.9,3237.3,0.1639828]
[1737666797777,0.7741,3238.0,3237.3,0.1639828]
[1737666798975,0.7741,3238.0,3237.4,0.04023656]
[1737666799193,0.7741,3238.0,3237.3,0.1639828]
[1737666800396,0.7741,3238.0,3237.4,0.04023656]
[1737666800960,0.7741,3238.0,3237.3,0.1639828]
[1737666801454,2.7944086,3238.0,3237.3,0.1639828]
[1737666801655,2.0203086,3237.7,3237.3,0.1639828]
[1737666801874,2.7972086,3237.7,3237.3,0.1639828]
[1737666802100,2.0203086,3237.4,3237.3,0.1639828]
[1737666802309,3.3472086,3237.4,3237.3,0.1639828]
[1737666803213,0.7769,3237.4,3237.3,0.1639828]
[1737666803554,2.7972086,3237.4,3237.3,0.1639828]
[1737666803755,3.68129586,3237.4,3237.3,0.1639828]
[1737666804617,1.05662086,3237.4,3237.3,0.1639828]
[1737666804922,2.7972086,3237.4,3237.3,0.1639828]
[1737666808099,3.3472086,3237.4,3237.3,0.1639828]
[1737666808295,2.7972086,3237.4,3237.3,0.1639828]
[1737666808695,0.7769,3237.4,3237.3,0.1639828]
[1737666808922,2.0203086,3237.8,3237.3,0.1639828]
[1737666808923,0.7906,3237.7,3237.3,0.1639828]
[1737666809762,2.0203086,3237.5,3237.3,0.1639828]
[1737666810421,0.7906,3237.4,3237.3,0.1639828]
[1737666811002,1.3406,3237.4,3237.3,0.1639828]
[1737666811302,1.3406,3237.4,3237.3,0.0019828]
[1737666811857,1.73064507,3237.4,3235.2,0.7881]
[1737666812057,0.7575,3236.5,3235.3,0.387916]
[1737666812223,0.7575,3236.5,3235.3,0.04235885]
[1737666812761,0.7741,3236.9,3235.3,3.04235885]
[1737666813060,2.7944086,3236.9,3235.3,0.04235885]
[1737666813559,0.37509537,3237.3,3235.3,0.04235885]
[1737666813560,0.7712,3236.5,3235.3,0.04235885]
[1737666813715,2.0203086,3236.0,3235.3,0.04235885]
[1737666814052,0.55,3236.4,3235.3,0.04235885]
[1737666814053,2.0203086,3235.4,3235.3,0.04235885]
[1737666814215,2.0203086,3235.4,3234.4,0.7792]
[1737666814398,2.0203086,3235.4,3235.3,0.04274445]
[1737666814625,2.0203086,3235.4,3234.0,0.7534]
[1737666814951,0.7799,3234.9,3234.0,0.7534]
[1737666815136,2.0203086,3234.7,3233.8,3.20874342]
[1737666815336,2.0203086,3234.7,3233.5,0.7534]
[1737666815848,1.05992086,3234.9,3233.6,3.0]
[1737666816070,0.7799,3234.9,3233.5,0.7534]
[1737666816269,0.7799,3234.9,3233.7,3.09241]
[1737666816428,0.7799,3234.9,3233.5,0.7534]
[1737666816756,2.0203086,3234.7,3233.5,0.7534]
[1737666817153,0.7799,3234.9,3233.5,0.7534]
[1737666817318,0.7799,3234.9,3233.7,3.0]
[1737666817713,0.61443761,3235.1,3234.0,3.0]
[1737666818044,0.61443761,3235.1,3234.2,0.7975]
[1737666818354,2.8109086,3235.3,3234.2,0.7975]
[1737666818555,3.09199946,3235.3,3234.2,0.7975]
[1737666819259,3.71101043,3235.3,3234.2,0.7975]
[1737666819785,2.0203086,3235.0,3234.2,0.7975]
[1737666820086,0.7768,3234.6,3233.4,0.7582]
[1737666820284,0.27971086,3234.5,3233.4,0.7582]
[1737666820955,0.27971086,3234.5,3233.0,0.8183]
[1737666821719,1.39817337,3234.6,3233.0,3.8183]
[1737666822084,1.39817337,3234.6,3233.0,0.8183]
[1737666822419,1.39817337,3234.6,3233.0,3.8183]
[1737666822922,1.55454157,3234.6,3233.0,3.8183]
[1737666823400,2.46783995,3234.3,3233.0,0.8183]
[1737666823552,1.3406,3234.2,3232.7,3.0503]
[1737666823752,1.3406,3234.2,3232.8,3.0]
[1737666824496,1.3406,3234.2,3232.7,0.8263]
[1737666825337,2.46783995,3233.9,3232.7,0.8263]
[1737666825537,0.246784,3233.8,3233.2,0.04546008]
[1737666825740,2.46783995,3233.5,3233.2,0.04546008]
[1737666826045,0.25,3234.3,3232.8,0.752]
[1737666826046,0.7906,3234.1,3232.8,0.752]
[1737666826236,2.46783995,3234.3,3233.3,0.04654931]
[1737666826493,0.61451044,3234.3,3232.9,3.0]
[1737666826656,0.61451044,3234.3,3233.4,0.046488]
[1737666826855,0.7906,3234.4,3233.2,0.752]
[1737666827073,0.7906,3234.4,3233.5,0.04642669]
[1737666827393,0.7906,3234.4,3232.4,0.62322822]
[1737666827394,2.46783995,3233.9,3233.6,0.04624845]
[1737666827558,0.246784,3233.8,3232.8,0.752]
[1737666827759,0.246784,3233.8,3232.9,0.45760899]
[1737666827966,0.246784,3233.8,3233.2,0.0464608]
[1737666828535,0.7906,3233.7,3233.2,0.0464608]
[1737666829628,0.7906,3233.7,3232.8,0.752]
[1737666830548,0.246784,3233.8,3233.2,0.04669103]
[1737666830878,0.33485363,3233.7,3232.8,0.752]
[1737666831176,0.33485363,3233.7,3233.2,0.04669103]
[1737666831777,0.7906,3234.1,3233.2,0.04669103]
[1737666831980,2.46783995,3234.7,3233.2,0.04669103]
[1737666832141,2.62294402,3234.7,3233.2,0.04669103]
[1737666832341,2.46783995,3234.7,3233.3,0.8125]
[1737666832542,0.7836,3234.6,3233.4,0.04611191]
[1737666832989,0.62988277,3234.5,3233.4,0.04611191]
[1737666833565,0.55,3234.4,3233.4,0.04611191]
[1737666833762,0.62988277,3234.5,3233.4,0.04611191]
[1737666836355,0.55,3234.2,3233.5,0.45763403]
[1737666836560,2.46783995,3233.9,3233.5,0.45763403]
[1737666837066,0.55,3233.6,3233.5,0.45763403]
[1737666837270,3.80843995,3233.2,3233.1,0.3]
[1737666838591,3.25843995,3233.2,3233.1,0.3]
[1737666838790,3.58428395,3233.2,3233.1,0.3]
[1737666839013,1.116444,3233.2,3233.1,0.3]
[1737666839156,3.84810737,3233.6,3233.1,0.3]
[1737666839510,0.55,3233.5,3233.1,0.3]
[1737666839661,2.46783995,3233.2,3233.1,0.3]
[1737666839860,3.01783995,3233.2,3233.1,0.3]
[1737666840597,2.46783995,3233.2,3233.1,0.3]
[1737666840795,1.38026742,3233.6,3233.1,0.3]
[1737666840988,3.84810737,3233.6,3233.1,0.3]
[1737666842163,1.38026742,3233.6,3233.1,0.3]
[1737666842498,0.7906,3234.0,3233.1,0.3]
[1737666842714,0.6100451,3233.9,3233.1,0.3]
[1737666842916,0.7906,3234.0,3233.2,0.04430616]
[1737666843119,2.46783995,3234.4,3233.3,0.7553]
[1737666843319,2.79368395,3234.4,3233.3,0.7553]
[1737666843624,2.46783995,3234.0,3233.1,0.3]
[1737666845004,0.61480963,3234.1,3233.2,0.0442286]
[1737666845217,0.7906,3234.5,3233.3,0.7608]
[1737666845421,0.7906,3234.5,3233.3,0.8049673]
[1737666845591,0.28109086,3235.3,3233.3,0.8049673]
[1737666845592,0.7696,3236.0,3233.5,3.09262]
[1737666845791,2.46783995,3235.7,3233.9,0.7608]
[1737666846021,0.61777972,3235.3,3233.9,0.7608]
[1737666846221,3.08561967,3235.3,3234.0,0.04366661]
[1737666846515,3.0,3236.6,3234.0,0.04366661]
[1737666846516,0.7555,3236.0,3234.1,0.8107]
[1737666846717,0.61282593,3235.7,3234.4,0.8107]
[1737666846919,3.22333995,3236.5,3235.1,3.0]
[1737666847137,0.5,3237.5,3235.2,1.419814]
[1737666847138,0.62098705,3236.3,3235.2,1.419814]
[1737666847343,0.7555,3236.8,3235.2,1.419814]
[1737666847541,0.39004507,3236.7,3235.3,0.04287378]
[1737666847689,0.62024513,3236.4,3235.3,0.04287378]
[1737666848982,0.9078916,3236.8,3235.3,0.04287378]
[1737666849383,0.60825075,3236.5,3235.3,0.04287378]
[1737666850142,0.60825075,3236.5,3235.4,0.8001]
[1737666850439,0.60825075,3236.5,3235.5,0.04212225]
[1737666850849,2.46783995,3236.9,3235.5,0.04212225]
[1737666850985,0.246784,3236.8,3235.6,0.7568]
[1737666851187,0.246784,3236.8,3235.6,0.79886104]
[1737666851491,0.7906,3237.1,3235.6,0.79886104]
[1737666852022,0.6333804,3236.8,3235.6,0.79886104]
[1737666853202,2.46783995,3237.3,3235.6,0.79886104]
[1737666853511,0.62312073,3237.1,3235.6,0.79886104]
[1737666853716,0.62312073,3237.1,3235.8,3.0]
[1737666853914,0.62312073,3237.1,3236.0,0.8276]
[1737666854355,0.7906,3238.0,3236.0,0.8276]
[1737666854550,0.7906,3238.0,3236.1,0.04085764]
[1737666854754,0.61007982,3237.3,3236.2,0.8028]
[1737666855234,0.61007982,3237.3,3236.3,0.04060349]
[1737666855811,0.94328014,3238.0,3236.4,0.8028]
[1737666856018,0.34111201,3237.9,3236.4,0.84365218]
[1737666856526,0.60562984,3237.5,3236.4,0.84365218]
[1737666856924,2.46783995,3237.3,3236.4,0.84365218]
[1737666857138,2.46783995,3236.9,3234.9,0.7947]
[1737666857559,2.46783995,3236.9,3235.1,0.7947]
[1737666857848,1.33,3237.2,3234.7,6.70802937]
[1737666857849,0.246784,3236.8,3235.3,0.7952]
[1737666858055,0.78,3237.2,3235.3,0.7952]
[1737666858252,0.60884371,3236.8,3235.4,3.04169492]
[1737666858406,0.34111201,3237.9,3235.4,3.04169492]
[1737666858407,0.7613,3237.6,3235.7,0.7952]
[1737666858603,0.63004292,3237.1,3235.7,0.7952]
[1737666858808,0.63004292,3237.1,3235.8,0.04115205]
[1737666859352,0.63004292,3237.1,3235.7,0.7952]
[1737666859801,0.63004292,3237.1,3235.8,0.041277]
[1737666859933,2.46783995,3236.9,3235.8,0.041277]
[1737666860276,0.55,3236.7,3235.7,0.7952]
[1737666860657,2.46783995,3236.5,3235.7,0.7952]
[1737666861190,2.46783995,3236.5,3234.5,38.09164]
[1737666861399,2.46783995,3236.5,3234.6,3.0]
[1737666861567,2.46783995,3236.5,3234.7,0.7839]
[1737666861767,0.60529469,3236.1,3234.9,0.7954]
[1737666862000,0.55,3236.0,3235.0,0.04154487]
[1737666862387,2.46783995,3235.7,3234.5,0.7954]
[1737666862692,2.46783995,3235.3,3234.6,0.04187351]
[1737666862846,0.55,3235.1,3234.6,0.04187351]
[1737666863051,0.55,3235.1,3234.1,0.7954]
[1737666863263,2.46783995,3234.9,3234.7,0.04207824]
[1737666863505,2.46783995,3234.9,3234.1,0.7954]
[1737666863680,2.46783995,3234.9,3234.8,0.04201699]
[1737666863884,2.76962394,3234.9,3234.1,0.7954]
[1737666864278,3.39438447,3234.9,3234.1,0.7954]
[1737666865371,0.7906,3235.5,3234.1,0.7954]
[1737666865565,0.62717058,3235.0,3234.1,0.7954]
[1737666865765,0.62717058,3235.0,3234.2,0.04223337]
[1737666867906,0.62717058,3235.0,3234.1,0.7954]
[1737666869203,0.62717058,3235.0,3234.2,0.04223337]
[1737666869707,0.62717058,3235.0,3234.1,0.7954]
[1737666874074,2.46783995,3234.5,3233.7,0.8009]
[1737666874398,2.46783995,3234.1,3233.8,0.04174926]
[1737666874595,0.55,3233.9,3232.9,0.8009]
[1737666874803,2.46783995,3233.7,3232.9,0.8009]
[1737666874988,2.46783995,3233.3,3232.5,0.8009]
[1737666875383,0.55,3233.2,3232.6,0.04277138]
[1737666875588,0.7623,3233.2,3232.2,0.8009]
[1737666875777,2.46783995,3233.3,3232.3,0.04321769]
[1737666876085,0.61564434,3233.4,3232.3,0.04321769]
[1737666876311,0.61564434,3233.4,3232.4,0.8267]
[1737666876696,0.61564434,3233.4,3232.5,0.04345058]
[1737666877216,0.7768,3233.2,3232.5,0.04345058]
[1737666877387,0.324464,3233.1,3232.4,0.8267]
[1737666878201,0.61564434,3233.4,3232.4,0.8267]
[1737666879318,2.46783995,3233.3,3232.4,0.8267]
[1737666879497,2.46783995,3233.3,3231.7,0.7728]
[1737666880016,2.46783995,3233.3,3232.5,0.8065]
[1737666880217,0.30834843,3233.2,3232.5,0.8065]
[1737666880416,0.30834843,3233.2,3231.9,0.8152]
[1737666880923,0.30834843,3233.2,3232.0,0.04317066]
[1737666881518,0.62817474,3232.8,3232.0,0.04317066]
[1737666881913,0.30834843,3233.2,3232.0,0.04317066]
[1737666882115,0.27761884,3233.1,3232.0,0.04317066]
[1737666882299,0.27761884,3233.1,3232.1,0.8275]
[1737666882505,0.62136894,3233.2,3232.1,0.87060932]
[1737666882720,0.62136894,3233.2,3232.2,35.0]
[1737666882914,2.46783995,3233.7,3232.2,35.0]
[1737666883106,2.46783995,3233.7,3232.3,0.87050489]
[1737666883319,2.62409861,3233.7,3232.3,0.87050489]
[1737666883497,0.61573869,3233.3,3232.3,0.87050489]
[1737666884005,0.55,3233.2,3232.3,0.87050489]
[1737666884214,1.3112,3233.2,3232.3,0.8275]
[1737666884994,0.61573869,3233.3,3232.3,0.8275]
[1737666885231,2.46783995,3234.1,3232.3,0.8275]
[1737666885417,0.61276889,3233.8,3232.5,0.7946]
[1737666885592,0.61276889,3233.8,3232.5,3.7946]
[1737666885794,2.46783995,3233.7,3232.6,0.04368651]
[1737666886055,2.46783995,3233.7,3232.5,0.7946]
[1737666886216,0.61276889,3233.8,3232.5,0.7946]
[1737666886416,0.7612,3234.3,3232.6,0.87548236]
[1737666886619,2.46783995,3234.5,3232.8,0.832]
[1737666886817,0.55,3234.4,3232.8,0.832]
[1737666887032,0.55,3234.4,3232.9,0.87535632]
[1737666887347,0.7906,3234.7,3232.9,0.87535632]
[1737666887348,0.61236292,3233.9,3232.9,0.87535632]
[1737666887666,0.61236292,3233.9,3233.0,0.7533]
[1737666887950,2.46783995,3234.9,3233.0,0.79649808]
[1737666888110,2.46783995,3234.5,3233.1,0.7533]
[1737666888313,0.55,3234.4,3233.1,0.79624]
[1737666888713,0.61793042,3234.3,3233.1,0.79624]
[1737666889116,0.7906,3234.2,3233.1,0.79624]
[1737666889662,3.01783995,3234.1,3233.1,0.7533]
[1737666889815,0.380844,3234.0,3233.1,0.7533]
[1737666890013,0.55,3233.6,3231.9,0.7533]
[1737666890209,0.55,3233.6,3232.0,0.04403586]
[1737666890426,2.46783995,3233.7,3232.1,0.7533]
[1737666890615,2.46783995,3233.7,3232.1,0.7972745]
[1737666890836,0.61390945,3233.4,3232.1,0.7972745]
[1737666892058,0.246784,3233.6,3232.1,0.7972745]
[1737666892059,0.796784,3233.6,3232.1,0.7972745]
[1737666892513,0.55,3233.6,3232.1,0.7972745]
[1737666892937,0.62276093,3233.5,3232.1,0.7972745]
[1737666893850,0.7906,3233.9,3232.2,0.7763]
[1737666894052,0.61279923,3233.6,3232.2,0.82000375]
[1737666894619,0.7906,3233.9,3232.4,0.7509]
[1737666894950,0.98547587,3234.0,3232.6,0.7509]
[1737666895313,0.7509,3234.4,3232.8,0.7509]
[1737666895520,0.63142328,3234.2,3232.8,0.7509]
[1737666895752,0.63142328,3234.2,3232.9,0.0434806]
[1737666897334,3.01783995,3234.1,3232.9,0.0434806]
[1737666897521,0.55,3233.6,3232.9,0.0434806]
[1737666897714,0.55,3233.2,3231.6,0.8029]
[1737666898029,0.30178399,3233.5,3232.0,0.8029]
[1737666898240,0.60982928,3233.4,3232.0,0.8029]
[1737666898419,0.60982928,3233.4,3232.1,0.04378299]
[1737666898622,0.60982928,3233.4,3232.2,0.8029]
[1737666898976,0.60982928,3233.4,3232.3,0.04366028]
[1737666900353,0.60821448,3233.6,3232.4,0.7661]
[1737666900559,0.55,3233.4,3232.4,0.7661]
[1737666900760,3.25843995,3233.3,3232.5,0.04353759]
[1737666900975,3.25843995,3233.3,3232.4,0.7661]
[1737666901264,0.30760544,3233.5,3232.4,0.7661]
[1737666901430,0.7906,3234.0,3232.4,0.7661]
[1737666901759,0.7906,3234.0,3232.6,0.7661]
[1737666902116,1.15710098,3233.9,3232.7,0.04328978]
[1737666902319,0.55,3233.6,3232.7,0.04328978]
[1737666902530,2.46783995,3233.3,3232.6,0.7661]
[1737666902730,0.246784,3233.2,3232.6,0.7661]
[1737666902948,1.3406,3233.2,3232.7,0.04328978]
[1737666903118,3.80843995,3233.2,3232.2,0.7647]
[1737666903718,3.80843995,3233.2,3232.3,0.04381577]
[1737666903924,3.80843995,3233.2,3232.2,0.7647]
[1737666904330,3.80843995,3233.2,3231.4,3.0]
[1737666904537,0.55,3233.0,3231.5,0.609467]
[1737666904809,0.55,3233.0,3231.5,0.65377366]
[1737666905334,0.55,3233.0,3231.5,0.04430666]
[1737666905660,0.55,3232.7,3230.9,0.1639828]
[1737666905837,0.55,3232.7,3231.6,0.04445713]
[1737666906034,0.55,3232.7,3230.9,3.1639828]
[1737666906244,2.46783995,3232.0,3231.7,0.04441261]
[1737666906538,0.55,3231.7,3230.9,0.1639828]
[1737666906751,2.46783995,3231.4,3230.9,0.1639828]
[1737666907261,2.46783995,3231.0,3230.9,0.1639828]
[1737666907450,3.32744142,3231.0,3230.9,0.1639828]
[1737666907963,3.85503588,3232.1,3230.9,0.1639828]
[1737666907964,2.46783995,3231.8,3230.9,0.1639828]
[1737666908126,0.97644645,3232.4,3230.9,3.1639828]
[1737666908321,0.97644645,3232.4,3231.1,0.7856]
[1737666908869,0.97644645,3232.4,3231.2,0.04656044]
[1737666909070,0.63083518,3231.9,3231.2,0.04656044]
[1737666910163,0.63083518,3231.9,3231.3,3.0]
[1737666910353,0.63083518,3231.9,3231.2,0.04656044]
[1737666910557,0.63083518,3231.9,3231.4,0.04596026]
[1737666910869,0.63083518,3231.9,3231.5,0.04589887]
[1737666911250,0.63083518,3231.9,3231.1,0.7856]
[1737666911473,0.63083518,3231.9,3231.6,0.0458375]
[1737666911774,0.63083518,3231.9,3231.1,0.7856]
[1737666911976,0.63083518,3231.9,3231.7,0.04577612]
[1737666912317,0.63083518,3231.9,3231.8,0.04571475]
[1737666912448,0.63083518,3231.9,3231.1,0.7856]
[1737666912649,0.7586,3232.8,3231.4,0.8261]
[1737666912862,0.6154246,3232.7,3231.5,3.0]
[1737666913061,0.7586,3233.3,3231.7,0.8261]
[1737666913447,2.46783995,3232.6,3231.8,0.04574394]
[1737666913649,1.3086,3232.5,3231.8,0.04574394]
[1737666913859,0.55,3232.1,3231.0,0.8261]
[1737666914046,0.55,3232.1,3230.9,0.1639828]
[1737666914047,0.55,3231.6,3230.9,0.1639828]
[1737666915561,0.70214144,3231.6,3230.9,0.1639828]
[1737666915760,0.55,3231.3,3230.9,0.1639828]
[1737666915958,0.30178399,3231.2,3230.9,0.1639828]
[1737666916547,0.15214144,3231.6,3230.9,0.1639828]
[1737666916790,0.6188285,3231.2,3230.9,0.1639828]
[1737666917349,0.7522,3231.0,3229.9,0.7935]
[1737666917655,0.55,3230.9,3229.9,0.7935]
[1737666918665,0.7522,3231.0,3229.9,0.7935]
[1737666918854,1.074204,3231.0,3229.9,0.7935]
[1737666919055,1.37279228,3231.0,3229.9,0.7935]
[1737666919242,0.55,3230.9,3229.9,0.7935]
[1737666920387,0.55,3230.9,3230.0,0.04749754]
[1737666920584,0.55,3230.9,3229.9,0.7935]
[1737666921343,0.55,3230.9,3230.0,0.04757693]
[1737666921561,0.55,3230.7,3229.5,0.7683]
[1737666921969,0.55,3230.7,3229.6,0.04792651]
[1737666922456,0.6083158,3230.5,3229.6,0.04792651]
[1737666922648,0.19227923,3230.8,3229.6,0.04792651]
[1737666922849,0.7522,3231.0,3229.6,0.04792651]
[1737666923188,0.55,3230.9,3229.6,0.04792651]
[1737666923486,0.60398175,3230.6,3229.6,0.04792651]
[1737666924005,0.55,3230.3,3229.6,0.04792651]
[1737666924369,0.55,3230.3,3229.2,0.36770778]
[1737666924894,0.55,3230.3,3229.3,0.04828824]
[1737666925495,0.55,3229.7,3228.5,0.36770778]
[1737666925809,0.7638,3229.6,3229.4,0.04779381]
[1737666926018,0.55,3229.5,3228.5,0.36770778]
[1737666926167,0.55,3229.5,3228.4,0.8106]
[1737666926364,0.55,3229.5,3228.6,0.04865048]
[1737666926671,0.7638,3229.6,3228.7,0.04874345]
[1737666926872,0.62670459,3229.8,3228.8,0.8106]
[1737666927083,0.7638,3230.1,3228.8,0.8106]
[1737666927310,0.7638,3230.1,3227.6,3.34827]
[1737666927311,0.62534245,3230.0,3228.9,0.85856074]
[1737666927489,0.62534245,3230.0,3228.9,36.24441681]
[1737666928006,0.62534245,3230.0,3229.0,3.0]
[1737666928309,0.7564,3229.9,3229.1,0.04848949]
[1737666928804,0.7564,3229.9,3229.0,0.36770778]
[1737666929004,0.7564,3229.9,3229.2,0.04866168]
[1737666929225,0.7564,3229.9,3229.1,0.04837257]